fUST/lending_fUST_20251125
["ID","MTS","AMOUNT","RATE_DAILY","PERIOD"]
[394846214,1764011432738,-121.05469811,8.889e-05,2]
[394846216,1764011432747,-356.68555753,9.206e-05,2]
[394846218,1764011432757,-300.0,9.777e-05,2]
[394846220,1764011432765,-538.43474436,9.777e-05,2]
[394846222,1764011432776,-570.56,9.777e-05,2]
[394846224,1764011432789,-91.00525564,9.777e-05,2]
[394846226,1764011432804,-500.0,9.778e-05,2]
[394846228,1764011432814,-500.0,9.778e-05,2]
[394846230,1764011432823,-500.0,9.778e-05,2]
[394846232,1764011432833,-500.0,9.778e-05,2]
[394846234,1764011432842,-500.0,9.778e-05,2]
[394846236,1764011432851,-500.0,9.778e-05,2]
[394846238,1764011432860,-500.0,9.778e-05,2]
[394846240,1764011432870,-500.0,9.778e-05,2]
[394846242,1764011432879,-500.0,9.778e-05,2]
[394846244,1764011432888,-500.0,9.778e-05,2]
[394846246,1764011432898,-500.0,9.778e-05,2]
[394846248,1764011432907,-500.0,9.778e-05,2]
[394846250,1764011432916,-500.0,9.778e-05,2]
[394846252,1764011432925,-500.0,9.778e-05,2]
[394846255,1764011432936,-500.0,9.778e-05,2]
[394846257,1764011432946,-500.0,9.778e-05,2]
[394846258,1764011432956,-500.0,9.778e-05,2]
[394846261,1764011432965,-400.0,9.778e-05,2]
[394846263,1764011432974,-500.0,9.778e-05,2]
[394846265,1764011432983,-500.0,9.778e-05,2]
[394846266,1764011432993,-500.0,9.778e-05,2]
[394846268,1764011433002,-500.0,9.778e-05,2]
[394846270,1764011433012,-500.0,9.778e-05,2]
[394846272,1764011433021,-500.0,9.778e-05,2]
[394846274,1764011433030,-500.0,9.778e-05,2]
[394846276,1764011433039,-500.0,9.778e-05,2]
[394846278,1764011433048,-500.0,9.778e-05,2]
[394846280,1764011433057,-500.0,9.778e-05,2]
[394846282,1764011433067,-154.83203798,9.778e-05,2]
[394846284,1764011433076,-432.81044024,9.778e-05,2]
[394846287,1764011433092,-67.18955976,9.778e-05,2]
[394846289,1764011433102,-500.0,9.778e-05,2]
[394846291,1764011433111,-500.0,9.778e-05,2]
[394846293,1764011433121,-500.0,9.778e-05,2]
[394846295,1764011433130,-500.0,9.778e-05,2]
[394846297,1764011433139,-500.0,9.778e-05,2]
[394846299,1764011433148,-500.0,9.778e-05,2]
[394846301,1764011433157,-500.0,9.778e-05,2]
[394846303,1764011433167,-500.0,9.778e-05,2]
[394846304,1764011433176,-500.0,9.778e-05,2]
[394846306,1764011433187,-500.0,9.778e-05,2]
[394846308,1764011433196,-500.0,9.778e-05,2]
[394846310,1764011433205,-500.0,9.778e-05,2]
[394846311,1764011433215,-500.0,9.778e-05,2]
[394846313,1764011433225,-336.60150081,9.778e-05,2]
[394846315,1764011433234,-500.0,9.778e-05,2]
[394846317,1764011433243,-1200.0,9.778e-05,2]
[394846319,1764011433253,-7054.62912181,9.779e-05,2]
[394846453,1764011440723,-500.0,9.78e-05,2]
[394846454,1764011440733,-203.263,9.781e-05,2]
[394846456,1764011440743,-300.0,9.782e-05,2]
[394846457,1764011440752,-300.0,9.782e-05,2]
[394846459,1764011440762,-300.0,9.782e-05,2]
[394846461,1764011440771,-151.697,9.782e-05,2]
[394846515,1764011441374,-148.303,9.782e-05,2]
[394846516,1764011441383,-300.0,9.782e-05,2]
[394846517,1764011441393,-300.0,9.782e-05,2]
[394846518,1764011441403,-300.0,9.782e-05,2]
[394846519,1764011441412,-300.0,9.782e-05,2]
[394846520,1764011441421,-300.0,9.782e-05,2]
[394846521,1764011441430,-300.0,9.782e-05,2]
[394846522,1764011441441,-300.0,9.782e-05,2]
[394846523,1764011441450,-300.0,9.782e-05,2]
[394846524,1764011441459,-300.0,9.782e-05,2]
[394846525,1764011441469,-300.0,9.782e-05,2]
[394846526,1764011441478,-300.0,9.782e-05,2]
[394846527,1764011441488,-527.95580376,9.849e-05,2]
[394846528,1764011441497,-222.68832439,0.00010054,2]
[394846727,1764011446022,-993.78549201,9.681e-05,2]
[394846729,1764011446031,-277.31167561,0.00010054,2]
[394846731,1764011446041,-150.0,0.0001015,2]
[394846733,1764011446051,-150.0,0.0001015,2]
[394846735,1764011446060,-2152.0,0.0001015,2]
[394846737,1764011446069,-630.0,0.0001015,2]
[394846739,1764011446078,-500.0,0.00010328,2]
[394846741,1764011446087,-414.0,0.00010518,2]
[394846742,1764011446097,-1961.3103124,0.00010534,2]
[394846743,1764011446105,-369.72257758,0.00010602,2]
[394846744,1764011446114,-420.0,0.00010755,2]
[394846745,1764011446123,-1680.0,0.00010755,2]
[394846746,1764011446132,-1221.8699424,0.00010756,2]
[394846747,1764011446143,-156.1300576,0.00010756,2]
[394846748,1764011446152,-1961.3103124,0.00010821,2]
[394846749,1764011446162,-187.78006525,0.00010852,2]
[394846750,1764011446171,-22433.09193348,0.00010859,2]
[394846770,1764011705304,1661.0,0.000111,3]
[394846771,1764011761383,1975.18,1e-05,2]
[394846772,1764011761986,1975.18,1e-05,2]
[394846773,1764011762351,1975.18,1.1e-05,2]
[394846774,1764011762697,1975.18,1.1e-05,2]
[394846775,1764011763029,1975.18,1.2e-05,2]
[394846776,1764011763294,1975.18,1.2e-05,2]
[394846777,1764011763590,1975.18,1.3e-05,2]
[394846778,1764011763867,1975.18,1.3e-05,2]
[394846779,1764011764174,1975.18,1.4e-05,2]
[394846780,1764011764714,1975.18,1.4e-05,2]
[394846781,1764011764892,1076.38390693,1.5e-05,2]
[394846782,1764011764921,898.79609307,1.5e-05,2]
[394846783,1764011765166,1975.18,1.5e-05,2]
[394846784,1764011765434,1975.18,1.6e-05,2]
[394846785,1764011765722,1975.18,1.6e-05,2]
[394846786,1764011766142,1975.18,1.7e-05,2]
[394846787,1764011766525,1975.18,1.7e-05,2]
[394846788,1764011766839,1975.18,1.8e-05,2]
[394846789,1764011767115,1975.18,1.8e-05,2]
[394846790,1764011767388,274.94390693,1.9e-05,2]
[394846791,1764011767418,1700.23609307,1.9e-05,2]
[394846792,1764011767666,1975.18,1.9e-05,2]
[394846793,1764011768613,1975.18,2e-05,2]
[394846794,1764011768919,1975.18,2e-05,2]
[394846795,1764011769177,1975.18,2.1e-05,2]
[394846796,1764011769461,1975.18,2.1e-05,2]
[394846797,1764011769817,1975.18,2.2e-05,2]
[394846798,1764011770772,1448.68390693,2.2e-05,2]
[394846799,1764011770801,526.49609307,2.2e-05,2]
[394846800,1764011771108,1975.18,2.3e-05,2]
[394846801,1764011771401,1975.18,2.3e-05,2]
[394846802,1764011771904,1975.18,2.4e-05,2]
[394846803,1764011772649,1975.18,2.4e-05,2]
[394846804,1764011772990,1975.18,2.5e-05,2]
[394846805,1764011773264,1975.18,2.5e-05,2]
[394846806,1764011773591,1975.18,2.6e-05,2]
[394846807,1764011773879,647.24390693,2.6e-05,2]
[394846808,1764011773906,1327.93609307,2.6e-05,2]
[394846809,1764011774158,1975.18,2.7e-05,2]
[394846810,1764011774494,1975.18,2.7e-05,2]
[394846811,1764011774815,1975.18,2.8e-05,2]
[394846812,1764011775102,1975.18,2.8e-05,2]
[394846813,1764011775383,1975.18,2.9e-05,2]
[394846814,1764011775678,1975.18,2.9e-05,2]
[394846815,1764011775952,1820.98390693,3e-05,2]
[394846816,1764011775978,154.19609307,3e-05,2]
[394846817,1764011776223,1975.18,3e-05,2]
[394846818,1764011776566,1975.18,3.1e-05,2]
[394846819,1764011776859,1975.18,3.1e-05,2]
[394846820,1764011777197,1975.18,3.2e-05,2]
[394846821,1764011777581,1975.18,3.2e-05,2]
[394846822,1764011777864,1975.18,3.3e-05,2]
[394846823,1764011778404,1975.18,3.3e-05,2]
[394846824,1764011778450,1975.18,3.4e-05,2]
[394846825,1764011778705,1975.18,3.4e-05,2]
[394846826,1764011881715,1605.51,1e-05,2]
[394846827,1764011882198,1605.51,1e-05,2]
[394846828,1764011882272,1605.51,1.1e-05,2]
[394846829,1764011882553,1605.51,1.1e-05,2]
[394846830,1764011882842,1605.51,1.2e-05,2]
[394846831,1764011883117,1605.51,1.2e-05,2]
[394846832,1764011883478,1605.51,1.3e-05,2]
[394846833,1764011883759,1605.51,1.3e-05,2]
[394846834,1764011884066,1605.51,1.4e-05,2]
[394846836,1764011884363,1605.51,1.4e-05,2]
[394846838,1764011884643,1605.51,1.5e-05,2]
[394846839,1764011885035,1605.51,1.5e-05,2]
[394846840,1764011885311,1605.51,1.6e-05,2]
[394846841,1764011885633,1605.51,1.6e-05,2]
[394846842,1764011885963,1605.51,1.7e-05,2]
[394846843,1764011886424,1605.51,1.7e-05,2]
[394846844,1764011886531,1605.51,1.8e-05,2]
[394846845,1764011886823,1605.51,1.8e-05,2]
[394846846,1764011887178,1605.51,1.9e-05,2]
[394846847,1764011887447,1605.51,1.9e-05,2]
[394846848,1764011887791,1605.51,2e-05,2]
[394846849,1764011888060,1605.51,2e-05,2]
[394846850,1764011888333,1605.51,2.1e-05,2]
[394846851,1764011888614,1605.51,2.1e-05,2]
[394846852,1764011888887,1605.51,2.2e-05,2]
[394846853,1764011889152,1605.51,2.2e-05,2]
[394846854,1764011889432,1605.51,2.3e-05,2]
[394846855,1764011889690,1605.51,2.3e-05,2]
[394846856,1764011889962,1605.51,2.4e-05,2]
[394846857,1764011890230,1605.51,2.4e-05,2]
[394846858,1764011890531,1605.51,2.5e-05,2]
[394846859,1764011890813,1605.51,2.5e-05,2]
[394846860,1764011891078,1605.51,2.6e-05,2]
[394846861,1764011891358,1605.51,2.6e-05,2]
[394846862,1764011891623,1605.51,2.7e-05,2]
[394846863,1764011891898,1605.51,2.7e-05,2]
[394846864,1764011892171,1605.51,2.8e-05,2]
[394846865,1764011892513,1605.51,2.8e-05,2]
[394846866,1764011892834,1605.51,2.9e-05,2]
[394846867,1764011893110,1605.51,2.9e-05,2]
[394846868,1764011893377,1605.51,3e-05,2]
[394846869,1764011893648,1605.51,3e-05,2]
[394846870,1764011893918,1605.51,3.1e-05,2]
[394846871,1764011894190,1605.51,3.1e-05,2]
[394846872,1764011894463,1605.51,3.2e-05,2]
[394846873,1764011894752,1605.51,3.2e-05,2]
[394846874,1764011895034,1605.51,3.3e-05,2]
[394846875,1764011895405,1605.51,3.3e-05,2]
[394846876,1764011895587,1605.51,3.4e-05,2]
[394846877,1764011942128,160.53,1e-05,2]
[394846878,1764011942405,160.53,1.3e-05,2]
[394846879,1764011942689,160.53,1.5e-05,2]
[394846880,1764011942964,160.53,1.8e-05,2]
[394846881,1764011943248,160.53,2.1e-05,2]
[394846882,1764011943634,160.53,2.4e-05,2]
[394846883,1764011943953,160.53,2.6e-05,2]
[394846884,1764011944424,160.53,2.9e-05,2]
[394846885,1764011944604,160.53,3.2e-05,2]
[394846886,1764011944948,160.53,3.4e-05,2]
[394846902,1764012089614,880.86236809,3.4e-05,2]
[394846926,1764012398120,-187.41182666,8.931e-05,2]
[394846932,1764012516312,3889.99995598,0.0002,30]
[394846993,1764012631885,-4568.64860938,8.666e-05,2]
[394847108,1764012638174,-681.64479914,8.666e-05,2]
[394847110,1764012638184,-172.3696563,8.71e-05,2]
[394847112,1764012638193,-1314.68176084,8.754e-05,2]
[394847114,1764012638205,-3935.61164768,8.754e-05,2]
[394847116,1764012638214,-300.0,8.841e-05,2]
[394847118,1764012638223,-1200.0,8.841e-05,2]
[394847120,1764012638232,-300.0,8.841e-05,2]
[394847122,1764012638242,-1200.0,8.93e-05,2]
[394847124,1764012638251,-162.611,9.485e-05,2]
[394847125,1764012638260,-22557.43155717,9.579e-05,2]
[394847128,1764012638280,-3562.80100511,9.579e-05,2]
[394847131,1764012638292,-4214.40995442,9.579e-05,2]
[394847133,1764012638303,-683.22434254,9.579e-05,2]
[394847135,1764012638314,-296.26393716,9.579e-05,2]
[394847137,1764012638326,-1646.08159874,9.579e-05,2]
[394847161,1764012640015,-804.7719191,9.579e-05,2]
[394847166,1764012640679,-20421.5240033,9.579e-05,2]
[394847220,1764012643944,-28250.97554088,9.579e-05,2]
[394847221,1764012643957,-5396.0609,9.579e-05,2]
[394847249,1764012646794,-302.0,9.483e-05,2]
[394847250,1764012646850,-334.0,9.483e-05,2]
[394847251,1764012646862,-1019.33215856,9.483e-05,2]
[394847252,1764012646871,-9364.05898536,9.579e-05,2]
[394847253,1764013121172,164.820829,8.44e-05,120]
[394847257,1764013614131,-157.98062847,7.981e-05,2]
[394847290,1764013832045,-2184.2375706,7.744e-05,2]
[394847292,1764013832055,-2184.2375706,7.822e-05,2]
[394847294,1764013832064,-175.46226318,8.021e-05,2]
[394847296,1764013832074,-164.820829,8.44e-05,2]
[394847297,1764013832083,-2184.2375706,8.649e-05,2]
[394847299,1764013832092,-212.83528815,8.964e-05,2]
[394847301,1764013832102,-506.6199841,9.107e-05,2]
[394847303,1764013832111,-261.45075877,9.3e-05,2]
[394847305,1764013832121,-1200.0,9.421e-05,2]
[394847307,1764013832130,-474.0,9.422e-05,2]
[394847309,1764013832139,-300.0,9.422e-05,2]
[394847310,1764013832148,-300.0,9.422e-05,2]
[394847313,1764013832158,-598.14514757,9.423e-05,2]
[394847315,1764013832168,-500.0,9.423e-05,2]
[394847317,1764013832177,-500.44178598,9.423e-05,2]
[394847320,1764013832187,-500.0,9.423e-05,2]
[394847323,1764013832196,-392.86624646,9.423e-05,2]
[394847325,1764013832205,-500.0,9.423e-05,2]
[394847328,1764013832214,-500.0,9.423e-05,2]
[394847331,1764013832223,-158.21888254,9.423e-05,2]
[394847333,1764013832233,-500.0,9.423e-05,2]
[394847335,1764013832242,-500.0,9.423e-05,2]
[394847337,1764013832251,-500.0,9.423e-05,2]
[394847339,1764013832260,-170.8277788,9.423e-05,2]
[394847341,1764013832270,-500.0,9.423e-05,2]
[394847343,1764013832279,-160.01457828,9.423e-05,2]
[394847345,1764013832288,-500.0,9.423e-05,2]
[394847347,1764013832297,-163.42150992,9.423e-05,2]
[394847349,1764013832306,-500.0,9.423e-05,2]
[394847351,1764013832315,-500.0,9.423e-05,2]
[394847353,1764013832325,-500.0,9.423e-05,2]
[394847355,1764013832334,-510.94054269,9.423e-05,2]
[394847356,1764013832344,-500.0,9.423e-05,2]
[394847357,1764013832353,-500.0,9.423e-05,2]
[394847358,1764013832363,-50000.0,9.423e-05,2]
[394847359,1764013832372,-189.059977,9.446e-05,2]
[394847360,1764013832381,-500.0,9.446e-05,2]
[394847361,1764013832390,-500.0,9.446e-05,2]
[394847362,1764013832400,-500.0,9.446e-05,2]
[394847363,1764013832409,-500.0,9.446e-05,2]
[394847364,1764013832419,-500.0,9.446e-05,2]
[394847365,1764013832428,-500.0,9.446e-05,2]
[394847366,1764013832437,-500.0,9.446e-05,2]
[394847367,1764013832448,-300.0,9.446e-05,2]
[394847368,1764013832460,-500.0,9.446e-05,2]
[394847369,1764013832470,-500.0,9.446e-05,2]
[394847370,1764013832479,-500.0,9.446e-05,2]
[394847371,1764013832488,-500.0,9.446e-05,2]
[394847372,1764013832499,-500.0,9.446e-05,2]
[394847373,1764013832508,-500.0,9.446e-05,2]
[394847374,1764013832517,-500.0,9.446e-05,2]
[394847375,1764013832526,-500.0,9.446e-05,2]
[394847376,1764013832538,-500.0,9.446e-05,2]
[394847377,1764013832547,-500.0,9.446e-05,2]
[394847378,1764013832557,-500.0,9.446e-05,2]
[394847379,1764013832566,-500.0,9.446e-05,2]
[394847380,1764013832575,-500.0,9.446e-05,2]
[394847381,1764013832584,-500.0,9.446e-05,2]
[394847382,1764013832594,-500.0,9.446e-05,2]
[394847383,1764013832603,-500.0,9.446e-05,2]
[394847384,1764013832612,-500.0,9.446e-05,2]
[394847385,1764013832622,-500.0,9.446e-05,2]
[394847386,1764013832631,-500.0,9.446e-05,2]
[394847387,1764013832640,-333.01024876,9.446e-05,2]
[394847388,1764013832649,-500.0,9.446e-05,2]
[394847389,1764013832659,-500.0,9.446e-05,2]
[394847390,1764013832668,-500.0,9.446e-05,2]
[394847391,1764013832678,-500.0,9.446e-05,2]
[394847392,1764013832687,-500.0,9.446e-05,2]
[394847393,1764013832697,-653.29979951,9.446e-05,2]
[394847395,1764013832706,-653.29979951,9.446e-05,2]
[394847397,1764013832716,-653.29979951,9.446e-05,2]
[394847399,1764013832725,-653.29979951,9.446e-05,2]
[394847401,1764013832734,-653.29979951,9.446e-05,2]
[394847403,1764013832743,-653.29979951,9.446e-05,2]
[394847405,1764013832752,-500.0,9.446e-05,2]
[394847407,1764013832761,-653.29979951,9.446e-05,2]
[394847409,1764013832770,-275.87988113,9.446e-05,2]
[394847411,1764013832783,-653.29979951,9.446e-05,2]
[394847413,1764013832792,-500.0,9.446e-05,2]
[394847415,1764013832801,-653.29979951,9.446e-05,2]
[394847417,1764013832810,-653.29979951,9.446e-05,2]
[394847418,1764013832819,-500.0,9.446e-05,2]
[394847419,1764013832828,-500.0,9.446e-05,2]
[394847420,1764013832837,-653.29979951,9.446e-05,2]
[394847421,1764013832846,-500.0,9.446e-05,2]
[394847422,1764013832856,-653.29979951,9.446e-05,2]
[394847423,1764013832865,-500.0,9.446e-05,2]
[394847424,1764013832875,-653.29979951,9.446e-05,2]
[394847425,1764013832884,-500.0,9.446e-05,2]
[394847426,1764013832894,-653.29979951,9.446e-05,2]
[394847427,1764013832903,-500.0,9.446e-05,2]
[394847428,1764013832912,-653.29979951,9.446e-05,2]
[394847429,1764013832922,-500.0,9.446e-05,2]
[394847430,1764013832931,-653.29979951,9.446e-05,2]
[394847431,1764013832941,-544.16017825,9.446e-05,2]
[394847472,1764013838291,-500.0,9.445e-05,2]
[394847473,1764013838300,-321.4163692,9.445e-05,2]
[394847474,1764013838310,-16.5436308,9.445e-05,2]
[394847475,1764013838321,-494.9708498,9.445e-05,2]
[394847476,1764013838331,-4226.29426555,9.447e-05,2]
[394847482,1764013840362,-453.0,9.446e-05,2]
[394847571,1764013844969,-417.55037667,9.352e-05,2]
[394847572,1764013845544,-554.77519933,9.352e-05,2]
[394847573,1764013845553,-500.0,9.423e-05,2]
[394847574,1764013845562,-33.162788,9.446e-05,2]
[394847575,1764013845571,-486.162788,9.446e-05,2]
[394847576,1764013845580,-486.162788,9.446e-05,2]
[394847577,1764013845589,-486.162788,9.446e-05,2]
[394847578,1764013845598,-486.162788,9.446e-05,2]
[394847579,1764013845607,-486.162788,9.446e-05,2]
[394847580,1764013845616,-299.84807269,9.446e-05,2]
[394847636,1764013846506,-186.31471531,9.446e-05,2]
[394847638,1764013846516,-374.6852847,9.446e-05,2]
[394847722,1764014320016,627.91921931,9.4e-05,3]
[394847730,1764014801114,-151.22200743,8.123e-05,2]
[394847789,1764015032606,-260.25549587,7.648e-05,2]
[394847790,1764015032616,-260.25549587,7.725e-05,2]
[394847791,1764015032626,-260.25549587,7.803e-05,2]
[394847792,1764015032635,-174.95301792,7.922e-05,2]
[394847793,1764015032644,-1569.47969504,9.248e-05,2]
[394847794,1764015032654,-300.0,9.292e-05,2]
[394847795,1764015032664,-300.0,9.292e-05,2]
[394847796,1764015032674,-300.0,9.292e-05,2]
[394847797,1764015032683,-1200.0,9.292e-05,2]
[394847798,1764015032693,-500.0,9.293e-05,2]
[394847799,1764015032702,-500.0,9.293e-05,2]
[394847800,1764015032712,-500.0,9.293e-05,2]
[394847801,1764015032721,-500.0,9.293e-05,2]
[394847802,1764015032730,-500.0,9.293e-05,2]
[394847803,1764015032740,-501.44793486,9.293e-05,2]
[394847804,1764015032749,-500.0,9.293e-05,2]
[394847805,1764015032758,-500.0,9.293e-05,2]
[394847806,1764015032768,-500.0,9.293e-05,2]
[394847807,1764015032777,-500.0,9.293e-05,2]
[394847808,1764015032786,-414.36629238,9.293e-05,2]
[394847809,1764015032795,-500.0,9.293e-05,2]
[394847810,1764015032804,-160.01909738,9.293e-05,2]
[394847811,1764015032819,-500.0,9.293e-05,2]
[394847812,1764015032828,-500.0,9.293e-05,2]
[394847813,1764015032837,-500.0,9.293e-05,2]
[394847814,1764015032847,-500.0,9.293e-05,2]
[394847815,1764015032857,-500.0,9.293e-05,2]
[394847816,1764015032866,-500.0,9.316e-05,2]
[394847817,1764015032875,-500.0,9.316e-05,2]
[394847818,1764015032884,-500.0,9.316e-05,2]
[394847819,1764015032894,-558.01176022,9.316e-05,2]
[394847820,1764015032904,-224.99145844,9.318e-05,2]
[394847821,1764015032914,-208.06013643,9.318e-05,2]
[394847822,1764015032923,-500.0,9.318e-05,2]
[394847823,1764015032932,-76825.64518806,9.319e-05,2]
[394847824,1764015032955,-500.0,9.316e-05,2]
[394847825,1764015032964,-27789.51667992,9.319e-05,2]
[394847826,1764015032975,-9357.74671164,9.319e-05,2]
[394847827,1764015033005,-500.0,9.316e-05,2]
[394847828,1764015033014,-2100.0,9.319e-05,2]
[394847829,1764015033025,-2750.0,9.319e-05,2]
[394847838,1764015038266,-500.0,9.316e-05,2]
[394847839,1764015038275,-473.04347752,9.316e-05,2]
[394847840,1764015038284,-3901.94296889,9.319e-05,2]
[394847841,1764015038295,-26250.45435656,9.319e-05,2]
[394847842,1764015038322,-617.6599536,9.319e-05,2]
[394847843,1764015038333,-421486.51781445,9.319e-05,2]
[394847888,1764015040455,-973.04347752,9.222e-05,2]
[394847890,1764015040464,-500.0,9.293e-05,2]
[394847892,1764015040474,-231.44904806,9.293e-05,2]
[394847894,1764015040484,-2510.7475336,9.319e-05,2]
[394847896,1764015040495,-10423.99146691,9.319e-05,2]
[394847899,1764015040511,-303.52,9.319e-05,2]
[394847901,1764015040523,-576.57381697,9.319e-05,2]
[394847927,1764015044861,-29580.65773553,9.319e-05,2]
[394847928,1764015045708,-1273.9610882,9.319e-05,2]
[394847929,1764015045720,-265.19309456,9.319e-05,2]
[394847943,1764015046508,-3802.73882334,9.225e-05,2]
[394847945,1764015046518,-50935.06168935,9.319e-05,2]
[394847947,1764015046529,-516.50743114,9.319e-05,2]
[394847958,1764015046617,-121591.59358585,9.319e-05,2]
[394847960,1764015046628,-444.40811091,9.319e-05,2]
[394847965,1764015046671,-14876.27163294,9.319e-05,2]
[394847968,1764015046682,-4771.30280807,9.319e-05,2]
[394847970,1764015046692,-2538.32110617,9.319e-05,2]
[394848078,1764016007093,-183.79284474,7.934e-05,2]
[394848110,1764016069456,-439.15494182,7.855e-05,2]
[394848111,1764016069485,-439.15494182,7.934e-05,2]
[394848112,1764016069516,-622.94778656,8.014e-05,2]
[394848113,1764016069546,-171.45395756,8.302e-05,2]
[394848114,1764016071558,439.15494182,7.776e-05,2]
[394848178,1764016232952,-162.611,8.761e-05,2]
[394848179,1764016232961,-168.02487841,8.805e-05,2]
[394848180,1764016232970,-162.611,8.849e-05,2]
[394848181,1764016232979,-162.611,8.938e-05,2]
[394848182,1764016232988,-162.611,9.028e-05,2]
[394848183,1764016232998,-508.35644116,9.133e-05,2]
[394848184,1764016233007,-157.49402091,9.189e-05,2]
[394848185,1764016233017,-495.6420955,9.189e-05,2]
[394848186,1764016233027,-300.0,9.189e-05,2]
[394848187,1764016233037,-300.0,9.189e-05,2]
[394848188,1764016233046,-300.0,9.189e-05,2]
[394848189,1764016233055,-1200.0,9.189e-05,2]
[394848190,1764016233065,-50000.0,9.19e-05,2]
[394848191,1764016233074,-500.0,9.19e-05,2]
[394848192,1764016233084,-310.940023,9.19e-05,2]
[394848193,1764016233093,-500.0,9.193e-05,2]
[394848194,1764016233103,-390.92221377,9.193e-05,2]
[394848195,1764016233112,-500.0,9.193e-05,2]
[394848196,1764016233122,-500.0,9.193e-05,2]
[394848197,1764016233132,-500.9534743,9.193e-05,2]
[394848198,1764016233141,-500.0,9.193e-05,2]
[394848199,1764016233151,-500.0,9.193e-05,2]
[394848200,1764016233160,-500.0,9.193e-05,2]
[394848201,1764016233175,-188.21714756,9.193e-05,2]
[394848202,1764016233185,-502.19572659,9.193e-05,2]
[394848203,1764016233195,-501.46867833,9.193e-05,2]
[394848204,1764016233205,-2000.0,9.207e-05,2]
[394848205,1764016233215,-153.9300788,9.207e-05,2]
[394848206,1764016233224,-250.0,9.207e-05,2]
[394848207,1764016233234,-250.0,9.207e-05,2]
[394848208,1764016233244,-250.0,9.207e-05,2]
[394848209,1764016233253,-194.72792767,9.207e-05,2]
[394848210,1764016233263,-229.36118214,9.207e-05,2]
[394848211,1764016233272,-265403.79051434,9.212e-05,2]
[394848212,1764016233298,-462.228,9.212e-05,2]
[394848213,1764016233309,-787.442,9.212e-05,2]
[394848249,1764016238578,-500.0,9.097e-05,2]
[394848288,1764016238933,-1806.43505438,9.097e-05,2]
[394848290,1764016238943,-500.0,9.189e-05,2]
[394848292,1764016238953,-500.0,9.189e-05,2]
[394848294,1764016238962,-357.58798812,9.189e-05,2]
[394848296,1764016238971,-500.0,9.189e-05,2]
[394848298,1764016238980,-500.0,9.189e-05,2]
[394848300,1764016238990,-500.0,9.189e-05,2]
[394848302,1764016238999,-500.0,9.189e-05,2]
[394848304,1764016239008,-500.0,9.189e-05,2]
[394848306,1764016239018,-88.31565899,9.189e-05,2]
[394848355,1764016240721,-411.68434101,9.189e-05,2]
[394848356,1764016240731,-500.0,9.189e-05,2]
[394848357,1764016240740,-500.0,9.189e-05,2]
[394848358,1764016240750,-500.0,9.189e-05,2]
[394848359,1764016240760,-500.0,9.189e-05,2]
[394848360,1764016240769,-500.0,9.189e-05,2]
[394848361,1764016240779,-500.0,9.189e-05,2]
[394848362,1764016240788,-500.0,9.189e-05,2]
[394848363,1764016240798,-500.0,9.189e-05,2]
[394848364,1764016240808,-500.0,9.189e-05,2]
[394848365,1764016240817,-500.0,9.189e-05,2]
[394848366,1764016240826,-500.0,9.189e-05,2]
[394848367,1764016240836,-500.0,9.189e-05,2]
[394848368,1764016240846,-500.0,9.189e-05,2]
[394848369,1764016240855,-500.0,9.189e-05,2]
[394848370,1764016240865,-500.0,9.189e-05,2]
[394848371,1764016240874,-500.0,9.189e-05,2]
[394848372,1764016240884,-500.0,9.189e-05,2]
[394848374,1764016240893,-182.56666854,9.189e-05,2]
[394848376,1764016240902,-500.0,9.189e-05,2]
[394848378,1764016240911,-500.0,9.189e-05,2]
[394848380,1764016240922,-500.0,9.189e-05,2]
[394848381,1764016240933,-500.0,9.189e-05,2]
[394848383,1764016240942,-500.0,9.189e-05,2]
[394848385,1764016240951,-1355.30112445,9.212e-05,2]
[394848388,1764016240963,-531.30819575,9.212e-05,2]
[394848396,1764016241035,-500.0,9.212e-05,2]
[394848416,1764016246128,-2903.46093339,9.12e-05,2]
[394848424,1764016246842,-454.932072,9.12e-05,2]
[394848425,1764016246899,-3883.20920639,9.12e-05,2]
[394848426,1764016246910,-587.31513515,9.212e-05,2]